Cogmind - Beta 10.2 @@@ ROGUE MODE // 2021.08.14 @ 21:35:13 Player: Sam Result: Destroyed by D-53 Grenadier with Mini Grenade Launcher Performance ------------- Evolutions (0) 0 Regions Visited (2) 400 Robots Destroyed (14) 70 Value Destroyed (302) 302 Prototype IDs (0) 0 Alien Tech Used (0) 0 Bonus (-17) -17 TOTAL SCORE: 755 Bonus ------- Friendly Fire -17 Cogmind --------- Core Integrity 0/250 Matter 300/300 Energy 95/100 System Corruption 7% Temperature Cool (0) Movement Hovering (80) Location -10/Mines Parts ------- > --- POWER (1) -------- (None) > --- PROPULSION (2) --- Combat Airjet > --- UTILITY (2) ------ Improved Signal Interpreter Hacking Suite > --- WEAPON (2) ------- Mining Laser > --- INVENTORY (4) ---- Heat Sink Peak State ------------ > --- POWER ------------ Light Nuclear Core > --- PROPULSION ------- Improved Aluminum Leg Improved Aluminum Leg > --- UTILITY ---------- Small Storage Unit Improved Signal Interpreter > --- WEAPON ----------- Heavy EM Pulse Gun Heavy EM Pulse Gun > --- INVENTORY -------- Aluminum Leg Targeting Computer Light Armor Plating Light Armor Plating Hacking Suite Assault Rifle [Rating: 14] Favorites ----------- Power Light Nuclear Core Engine Light Ion Engine Power Core Light Nuclear Core Propulsion Improved Aluminum Leg Leg Improved Aluminum Leg Hover Unit Combat Airjet Utility Improved Signal Interpreter Device Sensor Array Storage Small Storage Unit Processor Improved Signal Interpreter Hackware Hacking Suite Protection Light Armor Plating Weapon Heavy EM Pulse Gun Energy Gun Heavy EM Pulse Gun Launcher Grenade Launcher Special Weapon Mining Laser Special Melee Weapon Datajack Build | -11 -10 -10 ------- Run | Scr Mat Min Slots Evolved . | . . . Power . | . . . Propulsion . | . . . Utility . | . . . Weapon . | . . . Parts Attached 26 | 6 16 4 Power 2 | 1 1 . Engine 1 | 1 . . Core 1 | . 1 . Reactor . | . . . Propulsion 7 | 2 4 1 Treads . | . . . Leg 6 | 2 4 . Wheel . | . . . Hover 1 | . . 1 Flight . | . . . Utility 8 | 1 6 1 Device 2 | . 2 . Storage 1 | 1 . . Processor 2 | . 2 . Hackware 1 | . . 1 Protection 2 | . 2 . Artifact . | . . . Weapon 9 | 2 5 2 Energy Gun 5 | 2 3 . Energy Cannon . | . . . Ballistic Gun . | . . . Ballistic Cannon . | . . . Launcher 1 | . 1 . Special Weapon 1 | . . 1 Impact Weapon . | . . . Slashing Weapon . | . . . Piercing Weapon . | . . . Special Melee Weapon 2 | . 1 1 Unidentified Prototypes . | . . . Parts Lost 10 | . 3 7 Power 1 | . . 1 Propulsion 2 | . . 2 Utility 2 | . 1 1 Weapon 5 | . 2 3 Highest Loss Streak 7 | . 2 7 Average Slot Usage (%) 96 | . 98 67 Engine 2 | . 2 . Core 10 | . 11 1 Leg 27 | . 28 19 Device 4 | . 5 . Storage 7 | . 7 . Processor 8 | . 7 17 Protection 5 | . 6 . Energy Gun 25 | . 26 10 Launcher 1 | . . 7 Naked Turns . | . . . Heaviest Build 18 | 10 18 11 Greatest Support 26 | 20 26 26 Greatest Overweight (x) . | . . . Average Overweight (x) . | . . . Largest Inventory Capacity 6 | 6 6 4 Average Capacity 5 | 5 5 4 Most Carried 6 | 4 6 4 Average Carried 4 | 3 4 3 Final Capacity 6 | 6 4 4 Final Carried 4 | 4 4 1 Class Distribution -------------------- 100% | Mutant Dominant Class ---------------- Mutant | -10/Materials Mutant | -10/Mines Resources | -11 -10 -10 ----------- Run | Scr Mat Min Matter Collected 437 | 256 117 64 Remotely . | . . . Salvage Created 406 | . 387 19 Parts 25 | . 24 1 Haulers Intercepted 1 | . 1 . Recyclers Shooed . | . . . Parts Field Recycled . | . . . Retrieved Matter . | . . . Parts Self-Destructed . | . . . Prevented . | . . . Kills | -11 -10 -10 ------- Run | Scr Mat Min Combat Hostiles Destroyed 9 | . 7 2 Guns 6 | . 6 . AOE 3 | . 1 2 Classes Destroyed 6 | . 6 . Builder 1 | . 1 . Hauler 1 | . 1 . Operator 1 | . 1 . Watcher 2 | . 2 . Swarmer 3 | . 1 2 Grunt 6 | . 6 . Best Kill Streak 4 | . 4 2 Combat Bots Only 2 | . 2 2 Max Kills in Single Turn 2 | . 2 2 Gunslinging . | . . . Exploded 2 | . 1 2 Melee . | . . . Uniques/NPCs Destroyed . | . . . Combat | -11 -10 -10 -------- Run | Scr Mat Min Damage Taken 935 | . 369 566 Core 260 | . 35 225 Absorbed by Shields . | . . . Core Remaining (%) 100 | 100 . . Volleys Fired 36 | . 28 8 Largest 2 | . 2 2 Hottest 90 | . 90 75 Shots Fired 64 | . 55 9 Gun 63 | . 55 8 Cannon . | . . . Launcher 1 | . . 1 Special . | . . . Kinetic . | . . . Thermal 33 | . 33 . Explosive 1 | . . 1 Electromagnetic 30 | . 22 8 Robot Hit Streak 13 | . 13 2 Robot Miss Streak 2 | . 2 2 Penetration Max . | . . . Secondary Targets 1 | . 1 . Max Gunslinging Chain 1 | . 1 . Shots Hit Robots 47 | . 42 5 Core Hits 21 | . 19 2 Critical Hits . | . . . Critical Kills . | . . . Critical Parts Destroyed . | . . . Melee Attacks 1 | . . 1 Impact . | . . . Slashing . | . . . Piercing . | . . . Sneak Attacks . | . . . Combat Hostiles . | . . . Follow-up Attacks . | . . . Damage Inflicted 783 | . 595 188 Guns 594 | . 540 54 Cannons . | . . . Explosions 184 | . 55 129 Melee . | . . . Ramming 5 | . . 5 Kinetic . | . . . Thermal 381 | . 381 . Explosive 129 | . . 129 Electromagnetic 268 | . 214 54 Impact . | . . . Slashing . | . . . Piercing . | . . . Highest Corruption 7 | . 2 7 Average Corruption 4 | . 1 5 Corruption Purged . | . . . Effects 5 | . 1 4 Message Errors 1 | . 1 . Matter Fused 1 | . . 1 Heat Flow Errors 1 | . . 1 Data Loss (minor) 1 | . . 1 Targeting Errors 1 | . . 1 Overload Shots . | . . . Overflow Damage . | . . . Projectiles . | . . . Explosions . | . . . Melee . | . . . Knockbacks . | . . . Impact . | . . . Kinetic . | . . . Secondary . | . . . Self-Inflicted Damage 71 | . 30 41 Shots 2 | . 1 1 Rammed 3 | . . 3 Targets Rammed 3 | . . 3 Kicked . | . . . Crushed . | . . . Highest Temperature 342 | . 342 197 Average Temperature 107 | . 113 59 Received Heat Transfer 139 | . 99 40 Effects 2 | . 2 . Interference 2 | . 2 . Siege Activations . | . . . Robots Corrupted . | . . . Combat Hostiles . | . . . Parts Fried 2 | . 2 . Impact Corruptions . | . . . Robots Melted . | . . . Combat Hostiles . | . . . Parts Melted 2 | . 2 . Heat Transferred 956 | . 956 . Parts Sabotaged . | . . . Parts Stolen . | . . . Parts Stripped . | . . . Power Chain Reactions 1 | . 1 . Missiles Intercepted . | . . . Alert | -11 -10 -10 ------- Run | Scr Mat Min Peak Influence 178 | . 178 58 Initial 3 | . . 3 Average 68 | . 77 25 Maximum Alert Level . | . . . Low Security (%) 100 | 100 100 100 Level 1 . | . . . Level 2 . | . . . Level 3 . | . . . Level 4 . | . . . Level 5 . | . . . High Security . | . . . Max Security . | . . . Squads Dispatched 2 | . 2 . Investigation . | . . . Extermination . | . . . Reinforcement 2 | . 2 . Assault . | . . . Garrison . | . . . Intercept . | . . . Construction Impeded . | . . . Haulers Reinforced . | . . . Stealth | -11 -10 -10 --------- Run | Scr Mat Min Distress Signals 2 | . 2 . Communications Jammed . | . . . Distress Signals . | . . . Times Spotted 29 | . 19 10 Peak Tracking Total 6 | . 4 6 Tactical Retreats 1 | . 1 . Traps | -11 -10 -10 ------- Run | Scr Mat Min Traps Triggered 3 | . 3 . Indirectly . | . . . Trap Hack Attempts . | . . . Triggered . | . . . Disarmed . | . . . Reprogrammed . | . . . Reused . | . . . Traps Extracted . | . . . Installed . | . . . Triggered . | . . . Machines | -11 -10 -10 ---------- Run | Scr Mat Min Machines Disabled . | . . . Max in Single Turn . | . . . Machines Sabotaged . | . . . Garrisons Compromised . | . . . Overloaded Fab Kills . | . . . Fab Network Shutdowns . | . . . Hacking | -11 -10 -10 --------- Run | Scr Mat Min Machines Accessed 4 | . 4 . Terminals 4 | . 4 . Fabricators . | . . . Repair Stations . | . . . Recycling Units . | . . . Scanalyzers . | . . . Garrison Access . | . . . Total Hacks 11 | . 11 . Successful 6 | . 6 . Failed 5 | . 5 . Catastrophic 2 | . 2 . Database Lockouts . | . . . Manual 10 | . 10 . Terminals 11 | . 11 . Fabricators . | . . . Repair Stations . | . . . Recycling Units . | . . . Scanalyzers . | . . . Garrison Access . | . . . Terminal Hacks 2 | . 2 . Branch Access Points 1 | . 1 . Zone Layout 1 | . 1 . Fabricator Hacks . | . . . Repair Station Hacks . | . . . Recycling Unit Hacks . | . . . Scanalyzer . | . . . Garrison Access Hacks . | . . . Unauthorized Hacks 4 | . 4 . Terminals 4 | . 4 . Assimilate 1 | . 1 . Botnet 2 | . 2 . Operators 1 | . 1 . Fabricators . | . . . Repair Stations . | . . . Recycling Units . | . . . Scanalyzers . | . . . Garrison Access . | . . . Data Cores Recovered . | . . . Used . | . . . Hacking Detections 3 | . 3 . Full Trace Events 1 | . 1 . Feedback Events . | . . . Feedback Blocked . | . . . Robot Schematics Acquired . | . . . Robots Built . | . . . Matter . | . . . Time . | . . . Total Robot Build Rating . | . . . Part Schematics Acquired . | . . . Parts Built . | . . . Matter . | . . . Time . | . . . Total Part Build Rating . | . . . Parts Repaired . | . . . Time . | . . . Parts Recycled . | . . . Recycled Matter . | . . . Retrieved Matter . | . . . Retrieved Components . | . . . Parts Scanalyzed . | . . . Part Schematics Acquired . | . . . Parts Damaged . | . . . Bothacking | -11 -10 -10 ------------ Run | Scr Mat Min Used RIF Installer . | . . . Robots Hacked 1 | . . 1 Non-combat . | . . . Combat 1 | . . 1 Robot Hacks Applied 1 | . . 1 parse_system 1 | . . 1 Relay Couplers Released . | . . . Robots Rewired . | . . . Allies Hacked . | . . . Hacks Repelled . | . . . Allies | -11 -10 -10 -------- Run | Scr Mat Min Total Allies . | . . . Largest Group . | . . . Highest-Rated Group . | . . . Highest-Rated Ally . | . . . Total Orders . | . . . Ally Attacks . | . . . Total Damage . | . . . Kills . | . . . Allies Corrupted . | . . . Allies Melted . | . . . Intel | -11 -10 -10 ------- Run | Scr Mat Min Robot Analysis Total . | . . . Derelict Logs Recovered . | . . . Drone Launches . | . . . Drone Recoveries . | . . . Exploration | -11 -10 -10 ------------- Run | Scr Mat Min Turns Passed 1005 | 60 866 79 Spaces Moved 676 | 47 580 49 Core 18 | 14 . 4 Treads . | . . . Legs 648 | 33 580 35 Wheels . | . . . Hover 10 | . . 10 Flight . | . . . Fastest Speed 50 | 50 120 50 Average Speed 117 | 99 120 106 Slowest Speed 120 | 120 120 120 Overloaded Moves . | . . . Propulsion Burnouts . | . . . Robots Hopped . | . . . Cave-ins Triggered . | . . . Exploration Rate (%) 32 | 3 84 11 Regions Visited 2 Branch Regions 1 Pre-discovered Areas . | . . . Known Exits Taken 1 | . 1 . Unknown Exits Taken 1 | 1 . . Scrap Searched 1 | . . 1 Spaces Dug . | . . . Terrain Destroyed 14 | . 2 12 Melee . | . . . Projectile . | . . . AOE 14 | . 2 12 Terrain Rammed . | . . . Walls Destroyed . | . . . Machines Disabled . | . . . Actions | -11 -10 -10 --------- Run | Scr Mat Min Total 818 | 58 695 65 Wait 49 | . 49 . Move 674 | 46 579 49 Hop . | . . . Pick Up 16 | 6 10 . Fast Attach 11 | 4 6 1 Attach 7 | 2 2 3 Detach . | . . . Swap 8 | . 8 . Drop 13 | . 13 . Fire 36 | . 28 8 Melee 1 | . . 1 Ram 3 | . . 3 Kick . | . . . Crush . | . . . Escape Stasis . | . . . Rewire . | . . . Trap . | . . . Miscellaneous . | . . . Route ------- -11/Scrapyard -10/Materials (discovered 4 exits: *Mat x3 / *Min) -10/Mines History --------- Turn | Location | Event 2 | -11/Scrapyard | Met Revision 17 14 | -11/Scrapyard | Discovered new exit (range 13) 61 | -11/Scrapyard | Entered Materials 315 | -10/Materials | Build established: Mutant 439 | -10/Materials | Discovered new exit (range 11) 491 | -10/Materials | Identified exit to Materials 637 | -10/Materials | Discovered exit to Materials (range 15) 687 | -10/Materials | Discovered exit to Materials (range 16) 831 | -10/Materials | Identified exit to Mines 927 | -10/Materials | Entered Mines 928 | -10/Mines | Assembled infested the area 933 | -10/Mines | Assisted by a Guerilla fighting off Assembled 982 | -10/Mines | Core integrity fell below 50% 992 | -10/Mines | Core integrity fell below 20% 1006 | -10/Mines | Destroyed by D-53 Grenadier with Mini Grenade Launcher Last Messages --------------- U-05 Engineer lays Concrete. Jacked D-53 Grenadier... >>parse_system Reading system data... U-05 Engineer builds a Wall. as-13468 destroyed. The unstable cave ceiling collapses. Imp. Aluminum Leg destroyed. Datajack destroyed. The unstable cave ceiling collapses. U-05 Engineer builds a Wall. Slammed into U-05 Engineer. U-05 Engineer builds a Wall. Acquired Cmb. Airjet. Slammed into U-05 Engineer. Acquired 21 matter. Slammed into T-07 Excavator. Destabilizing: System interference. Imp. Signal Interpreter temporarily disabled. The unstable cave ceiling collapses. Map ----- +----------------------------------------------------+ | ??????????????????????????????????????????????? | | ??????????????????????????????????????????????? | | ??????????????????????????????????????????????? | | ??????????????????????????????????????????????? | | ??????????????????????????????????????????????? | | ??????????????????????????????????????????????? | | ??????????????????????????????????????????????? | | ??????????????????????????????????????????????? | | ??????????????????????????????????????????????? | | ??????????????????????????????????????????????? | | ??????????????????????????????????????????????? | | ??????????????????????????????????????????????? | | ??????????????????????????????????????????????? | | ??????????????????????????????????????????????? | | ??????????????????????????????????????????????? | | ?????????????????????????#????????????????????? | | ????????????????????????? ????????????????????? | | ????????????????????????# #???????????????????? | | ????????????????????????# #???????????????????? | | ????????????????????????# #???????????????????? | | ????????????????????????# #???????????????????? | | ????????????????????????# #???????????????????? | | ?????????????????????#### ##??????????????????? | | ?????????????????????# # ###????????????????? | | ??????????????????#### ###?????????? ?????? | | ??????????????????# @ %d ####??????? ????? | | ??????????????????# ## # # #??????? ????? | | ??????????????????# ### # ####??? ????? | | ??????????????????# #??## # #??? #????? | | ??????????????????# #??## # # #??? #????? | | ??????????????????# #??# ##????? #????? | | ??????????????????# #??## #?????? ##???? | | ??????????????????# #??# # #?????? ##??? | | ??????????????????# #??# #???## ##?? | | ??????????????????# #??## ## " #?? | | ??????????????????? ????# # #?? ??? | | ??????????????????? ????# #?? ???? | | ??????????????????? ????# #?# ?????? | | ??????????????????? ????# # #### #??????? | | ??????????????????? ????# ]! #??????? | | ??????????????????? ????## #??????? | | ??????????????????? ?????## ######??????? | | ?????????????????????????# # ##???????????? | | ?????????????????????????# ##????????????? | | ?????????????????????????# #?????????????? | | ????????????????????????# % ##?????????????? | | ????????????????????????## #?????????????? | | ?????????????????????????## " #?????????????? | | ??????????????????????????## ??????????????? | | | +----------------------------------------------------+ Best States ------------- Heat Dissipation 25 Energy Generation 14 Energy Capacity 160 Matter Stores 300 Matter Capacity 300 Sight Range 16 Robot Scan Range 10 Terrain Scan Density 10 Armor Coverage 150 Evasion (%) 49 Targeting Accuracy 5 Offensive Hacking 10 Item Schematics ----------------- None Robot Schematics ------------------ None Fabricated ------------ Nothing Alien Tech Used ----------------- None Achievements -------------- True Hacker root@ Challenges ------------ None Game ------ Seed CoilTrapHumpback Manual? 0 Play Time 00:20:35 Cumulative 17.8 hours Start 2021.08.14 @ 21:09:40 End 2021.08.14 @ 21:35:13 Sessions 1 Manual Loads 0 Difficulty Rogue Special Mode None Game No. 23 Rogue 23 Adventurer 0 Explorer 0 Win Type - Total 0 Types 0/0/0/0/0/0/0/0/0 Lore% 21 Gallery% 24 Achievement% 19 Wizard Run 0 Options --------- ASCII 0 Keyboard 0 Movement Mouse Keybinds 0 Fullscreen 1 Font 18/Terminus Map View 76x50 Tactical HUD 0 Map Filters NONE Filters NONE Steam 1 RUN: 2109e710-11d3-4a7a-ae01-9c5b3041f1d7